[Event "Titled Tuesday Blitz March 14 Late 2023"]
[White "Sakun, Volodymyr"]
[Black "Kraus, Tomas"]
[WhiteFideId "14114062"]
[BlackFideId "331708"]
[WhiteElo "2331"]
[BlackElo "2389"]
[Result "1-0"]
[Round "01"]
[TimeControl "180+1"]
[Date "2023.03.14"]
[WhiteClock "0:01:06"]
[BlackClock "0:00:50"]

1. e4 {[%clk 0:02:59]}  e6 {[%clk 0:02:59]} 2. d4 {[%clk 0:02:58]}  d5 {[%clk 0:03:00]} 3. e5 {[%clk 0:02:58]}  c5 {[%clk 0:03:00]} 4. c3 {[%clk 0:02:58]}  Nc6 {[%clk 0:03:00]} 5. Nf3 {[%clk 0:02:58]}  Qb6 {[%clk 0:03:00]} 6. a3 {[%clk 0:02:59]}  Nh6 {[%clk 0:02:59]} 7. Bd3 {[%clk 0:02:54]}  cxd4 {[%clk 0:02:56]} 8. cxd4 {[%clk 0:02:52]}  Nf5 {[%clk 0:02:56]} 9. Bxf5 {[%clk 0:02:52]}  exf5 {[%clk 0:02:56]} 10. Nc3 {[%clk 0:02:52]}  Be6 {[%clk 0:02:56]} 11. O-O {[%clk 0:02:51]}  Be7 {[%clk 0:02:55]} 12. b4 {[%clk 0:02:49]}  O-O {[%clk 0:02:49]} 13. Na4 {[%clk 0:02:45]}  Qd8 {[%clk 0:02:46]} 14. g3 {[%clk 0:02:22]}  h6 {[%clk 0:02:44]} 15. h4 {[%clk 0:02:21]}  Rc8 {[%clk 0:02:39]} 16. h5 {[%clk 0:02:15]}  Qd7 {[%clk 0:02:05]} 17. Bf4 {[%clk 0:02:08]}  Kh7 {[%clk 0:02:02]} 18. Rc1 {[%clk 0:02:01]}  g5 {[%clk 0:02:00]} 19. hxg6+ {[%clk 0:01:56]}  fxg6 {[%clk 0:02:00]} 20. Kg2 {[%clk 0:01:24]}  Rh8 {[%clk 0:01:53]} 21. Nc5 {[%clk 0:01:15]}  Bxc5 {[%clk 0:01:49]} 22. dxc5 {[%clk 0:01:15]}  Kg7 {[%clk 0:01:37]} 23. Qd2 {[%clk 0:01:12]}  Qe7 {[%clk 0:01:31]} 24. Rh1 {[%clk 0:01:10]}  a6 {[%clk 0:01:25]} 25. Bxh6+ {[%clk 0:01:09]}  Kf7 {[%clk 0:01:23]} 26. Bg5 {[%clk 0:01:06]}  Qd7 {[%clk 0:01:18]} 27. Bf6 {[%clk 0:01:05]}  Rxh1 {[%clk 0:00:50]} 28. Rxh1 {[%clk 0:01:06]} 1-0


[Site "https://www.chess.com"]

[Event "Titled Tuesday Blitz March 14 Late 2023"]
[White "Saveliev, Alexei"]
[Black "Jimenez, Joaquin"]
[WhiteFideId "24128546"]
[BlackFideId "109860"]
[WhiteElo "2271"]
[BlackElo "2163"]
[Result "1-0"]
[Round "01"]
[TimeControl "180+1"]
[Date "2023.03.14"]
[WhiteClock "0:00:39"]
[BlackClock "0:00:14"]

1. c4 {[%clk 0:02:59]}  Nf6 {[%clk 0:02:58]} 2. Nc3 {[%clk 0:02:58]}  g6 {[%clk 0:02:56]} 3. e4 {[%clk 0:02:57]}  d6 {[%clk 0:02:55]} 4. d4 {[%clk 0:02:57]}  Bg7 {[%clk 0:02:55]} 5. f4 {[%clk 0:02:58]}  O-O {[%clk 0:02:53]} 6. Nf3 {[%clk 0:02:58]}  c5 {[%clk 0:02:51]} 7. d5 {[%clk 0:02:58]}  e6 {[%clk 0:02:51]} 8. Be2 {[%clk 0:02:59]}  exd5 {[%clk 0:02:51]} 9. cxd5 {[%clk 0:03:00]}  Re8 {[%clk 0:02:49]} 10. e5 {[%clk 0:03:00]}  dxe5 {[%clk 0:02:49]} 11. fxe5 {[%clk 0:03:01]}  Ng4 {[%clk 0:02:49]} 12. Bg5 {[%clk 0:03:02]}  Qb6 {[%clk 0:02:48]} 13. O-O {[%clk 0:03:02]}  c4+ {[%clk 0:02:15]} 14. Kh1 {[%clk 0:03:01]}  Ne3 {[%clk 0:02:02]} 15. Bxe3 {[%clk 0:02:44]}  Qxe3 {[%clk 0:02:01]} 16. Bxc4 {[%clk 0:02:20]}  Bg4 {[%clk 0:01:59]} 17. e6 {[%clk 0:02:13]}  fxe6 {[%clk 0:01:50]} 18. dxe6 {[%clk 0:02:14]}  Nc6 {[%clk 0:01:45]} 19. Qd7 {[%clk 0:01:50]}  Re7 {[%clk 0:01:12]} 20. Rae1 {[%clk 0:01:35]}  Qc5 {[%clk 0:00:46]} 21. Qd5 {[%clk 0:01:33]}  Qxd5 {[%clk 0:00:43]} 22. Nxd5 {[%clk 0:01:34]}  Rae8 {[%clk 0:00:29]} 23. Nxe7+ {[%clk 0:01:26]}  Rxe7 {[%clk 0:00:28]} 24. h3 {[%clk 0:01:19]}  Bxf3 {[%clk 0:00:28]} 25. Rxf3 {[%clk 0:01:19]}  Bxb2 {[%clk 0:00:25]} 26. Rb3 {[%clk 0:01:15]}  Na5 {[%clk 0:00:20]} 27. Rxb2 {[%clk 0:01:06]}  Nxc4 {[%clk 0:00:19]} 28. Rc2 {[%clk 0:01:06]}  b5 {[%clk 0:00:18]} 29. a4 {[%clk 0:01:01]}  a6 {[%clk 0:00:18]} 30. axb5 {[%clk 0:01:02]}  axb5 {[%clk 0:00:19]} 31. g4 {[%clk 0:00:59]}  Kg7 {[%clk 0:00:18]} 32. g5 {[%clk 0:00:59]}  h6 {[%clk 0:00:18]} 33. h4 {[%clk 0:00:59]}  hxg5 {[%clk 0:00:18]} 34. hxg5 {[%clk 0:01:00]}  Kf8 {[%clk 0:00:18]} 35. Rh2 {[%clk 0:00:54]}  Rg7 {[%clk 0:00:17]} 36. Rh8+ {[%clk 0:00:48]}  Ke7 {[%clk 0:00:16]} 37. Rb8 {[%clk 0:00:49]}  Rh7+ {[%clk 0:00:16]} 38. Kg1 {[%clk 0:00:48]}  Nd6 {[%clk 0:00:14]} 39. Ra8 {[%clk 0:00:45]}  Rh5 {[%clk 0:00:14]} 40. Ra7+ {[%clk 0:00:44]}  Ke8 {[%clk 0:00:14]} 41. e7 {[%clk 0:00:43]}  Rxg5+ {[%clk 0:00:15]} 42. Kh2 {[%clk 0:00:41]}  Rh5+ {[%clk 0:00:15]} 43. Kg3 {[%clk 0:00:41]}  Rg5+ {[%clk 0:00:15]} 44. Kf4 {[%clk 0:00:38]}  Rf5+ {[%clk 0:00:15]} 45. Kg4 {[%clk 0:00:39]}  Rf7 {[%clk 0:00:14]} 46. Ra8+ {[%clk 0:00:38]}  Kd7 {[%clk 0:00:14]} 47. Rd8+ {[%clk 0:00:38]}  Kc6 {[%clk 0:00:14]} 48. Rxd6+ {[%clk 0:00:38]}  Kxd6 {[%clk 0:00:14]} 49. e8=Q {[%clk 0:00:39]} 1-0


[Site "https://www.chess.com"]

[Event "Titled Tuesday Blitz March 14 Late 2023"]
[White "Schmakel, Sam"]
[Black "Hoffmann, Asa"]
[WhiteFideId "2039311"]
[BlackFideId "2001470"]
[WhiteElo "2356"]
[BlackElo "2117"]
[Result "1/2-1/2"]
[Round "01"]
[TimeControl "180+1"]
[Date "2023.03.14"]
[WhiteClock "0:00:24"]
[BlackClock "0:00:23"]

1. Nf3 {[%clk 0:02:58]}  d6 {[%clk 0:02:56]} 2. d4 {[%clk 0:02:56]}  Bg4 {[%clk 0:02:51]} 3. g3 {[%clk 0:02:55]}  Bxf3 {[%clk 0:02:49]} 4. exf3 {[%clk 0:02:56]}  c6 {[%clk 0:02:48]} 5. Bg2 {[%clk 0:02:56]}  g6 {[%clk 0:02:47]} 6. f4 {[%clk 0:02:51]}  e6 {[%clk 0:02:46]} 7. h4 {[%clk 0:02:47]}  Bg7 {[%clk 0:02:44]} 8. h5 {[%clk 0:02:46]}  Ne7 {[%clk 0:02:44]} 9. c3 {[%clk 0:02:40]}  Nd7 {[%clk 0:02:42]} 10. Nd2 {[%clk 0:02:40]}  Nf6 {[%clk 0:02:38]} 11. hxg6 {[%clk 0:02:24]}  hxg6 {[%clk 0:02:33]} 12. Rxh8+ {[%clk 0:02:24]}  Bxh8 {[%clk 0:02:33]} 13. Nf3 {[%clk 0:02:23]}  Qb6 {[%clk 0:02:29]} 14. Qb3 {[%clk 0:02:22]}  O-O-O {[%clk 0:02:27]} 15. Ng5 {[%clk 0:02:12]}  Rf8 {[%clk 0:02:22]} 16. Bd2 {[%clk 0:02:12]}  Qxb3 {[%clk 0:02:20]} 17. axb3 {[%clk 0:02:12]}  a6 {[%clk 0:02:20]} 18. b4 {[%clk 0:02:10]}  d5 {[%clk 0:02:13]} 19. Ke2 {[%clk 0:02:09]}  Ne8 {[%clk 0:02:12]} 20. Rh1 {[%clk 0:02:05]}  Bg7 {[%clk 0:02:04]} 21. g4 {[%clk 0:01:51]}  Nf6 {[%clk 0:01:31]} 22. Rh4 {[%clk 0:01:44]}  Kd7 {[%clk 0:01:26]} 23. Be3 {[%clk 0:01:38]}  Nc8 {[%clk 0:01:23]} 24. Nf3 {[%clk 0:01:33]}  Ne8 {[%clk 0:01:20]} 25. Ne5+ {[%clk 0:01:31]}  Ke7 {[%clk 0:01:19]} 26. Rh1 {[%clk 0:01:12]}  Ncd6 {[%clk 0:01:16]} 27. Kd3 {[%clk 0:01:09]}  Nf6 {[%clk 0:01:15]} 28. f3 {[%clk 0:01:09]}  Nd7 {[%clk 0:01:14]} 29. b3 {[%clk 0:01:08]}  Rh8 {[%clk 0:01:01]} 30. Rxh8 {[%clk 0:01:08]}  Bxh8 {[%clk 0:01:01]} 31. c4 {[%clk 0:01:09]}  Nxe5+ {[%clk 0:00:59]} 32. fxe5 {[%clk 0:01:08]}  Ne8 {[%clk 0:00:55]} 33. Bg5+ {[%clk 0:00:52]}  Kd7 {[%clk 0:00:54]} 34. f4 {[%clk 0:00:52]}  Bg7 {[%clk 0:00:54]} 35. b5 {[%clk 0:00:46]}  axb5 {[%clk 0:00:51]} 36. cxb5 {[%clk 0:00:42]}  cxb5 {[%clk 0:00:50]} 37. Kc3 {[%clk 0:00:42]}  Bf8 {[%clk 0:00:50]} 38. Bf1 {[%clk 0:00:36]}  Kc6 {[%clk 0:00:48]} 39. Bd3 {[%clk 0:00:36]}  Nc7 {[%clk 0:00:48]} 40. f5 {[%clk 0:00:35]}  gxf5 {[%clk 0:00:48]} 41. gxf5 {[%clk 0:00:36]}  b4+ {[%clk 0:00:43]} 42. Kd2 {[%clk 0:00:36]}  Nb5 {[%clk 0:00:38]} 43. Ke3 {[%clk 0:00:36]}  Na7 {[%clk 0:00:30]} 44. fxe6 {[%clk 0:00:29]}  fxe6 {[%clk 0:00:29]} 45. Bg6 {[%clk 0:00:29]}  Kd7 {[%clk 0:00:29]} 46. Kd3 {[%clk 0:00:30]}  Be7 {[%clk 0:00:25]} 47. Bd2 {[%clk 0:00:25]}  Nc6 {[%clk 0:00:24]} 48. Bf7 {[%clk 0:00:25]}  Nd8 {[%clk 0:00:23]} 49. Bg8 {[%clk 0:00:25]}  Nc6 {[%clk 0:00:23]} 50. Bf7 {[%clk 0:00:25]}  Nd8 {[%clk 0:00:23]} 51. Bg8 {[%clk 0:00:25]}  Nc6 {[%clk 0:00:23]} 52. Bf7 {[%clk 0:00:24]} 1/2-1/2


[Site "https://www.chess.com"]

[Event "Titled Tuesday Blitz March 14 Late 2023"]
[White "Shapiro, Viktor"]
[Black "Skytte, Rasmus"]
[WhiteFideId "4175700"]
[BlackFideId "1404210"]
[WhiteElo "2152"]
[BlackElo "2418"]
[Result "0-1"]
[Round "01"]
[TimeControl "180+1"]
[Date "2023.03.14"]
[WhiteClock "0:00:09"]
[BlackClock "0:00:50"]

1. c4 {[%clk 0:02:47]}  e6 {[%clk 0:02:56]} 2. Nc3 {[%clk 0:02:47]}  d5 {[%clk 0:02:56]} 3. d4 {[%clk 0:02:46]}  c5 {[%clk 0:02:55]} 4. e3 {[%clk 0:02:45]}  Nf6 {[%clk 0:02:53]} 5. Nf3 {[%clk 0:02:45]}  Nc6 {[%clk 0:02:52]} 6. a3 {[%clk 0:02:44]}  dxc4 {[%clk 0:02:45]} 7. Bxc4 {[%clk 0:02:44]}  cxd4 {[%clk 0:02:44]} 8. exd4 {[%clk 0:02:43]}  Be7 {[%clk 0:02:44]} 9. O-O {[%clk 0:02:43]}  O-O {[%clk 0:02:44]} 10. Qe2 {[%clk 0:02:40]}  Nd5 {[%clk 0:02:39]} 11. Nxd5 {[%clk 0:02:36]}  exd5 {[%clk 0:02:38]} 12. Bd3 {[%clk 0:02:36]}  Bg4 {[%clk 0:02:37]} 13. Be3 {[%clk 0:02:35]}  Bf6 {[%clk 0:02:35]} 14. Rad1 {[%clk 0:02:34]}  Re8 {[%clk 0:02:33]} 15. h3 {[%clk 0:02:30]}  Bh5 {[%clk 0:02:32]} 16. Qc2 {[%clk 0:02:00]}  Bxf3 {[%clk 0:02:25]} 17. gxf3 {[%clk 0:01:58]}  g6 {[%clk 0:02:24]} 18. Bb5 {[%clk 0:01:56]}  Rc8 {[%clk 0:02:22]} 19. Qd2 {[%clk 0:01:50]}  a6 {[%clk 0:02:16]} 20. Ba4 {[%clk 0:01:47]}  b5 {[%clk 0:02:14]} 21. Bb3 {[%clk 0:01:40]}  Qd7 {[%clk 0:02:09]} 22. Kg2 {[%clk 0:01:40]}  Ne7 {[%clk 0:02:08]} 23. Rc1 {[%clk 0:01:23]}  Nf5 {[%clk 0:02:07]} 24. f4 {[%clk 0:00:55]}  Nh4+ {[%clk 0:02:01]} 25. Kg3 {[%clk 0:00:55]}  Qf5 {[%clk 0:01:43]} 26. Rxc8 {[%clk 0:00:38]}  Rxc8 {[%clk 0:01:41]} 27. Qd1 {[%clk 0:00:35]}  Qe4 {[%clk 0:01:32]} 28. Rg1 {[%clk 0:00:20]}  Nf5+ {[%clk 0:01:29]} 29. Kh2 {[%clk 0:00:20]}  Bxd4 {[%clk 0:01:21]} 30. Re1 {[%clk 0:00:11]}  Bxe3 {[%clk 0:01:17]} 31. fxe3 {[%clk 0:00:12]}  Nxe3 {[%clk 0:01:15]} 32. Qd2 {[%clk 0:00:10]}  d4 {[%clk 0:01:13]} 33. f5 {[%clk 0:00:09]}  Qf4+ {[%clk 0:01:10]} 34. Kh1 {[%clk 0:00:09]}  Qf3+ {[%clk 0:01:09]} 35. Kh2 {[%clk 0:00:10]}  Nxf5 {[%clk 0:01:07]} 36. Qg2 {[%clk 0:00:09]}  Qf4+ {[%clk 0:01:04]} 37. Kg1 {[%clk 0:00:09]}  d3 {[%clk 0:01:02]} 38. Qf2 {[%clk 0:00:09]}  Qg5+ {[%clk 0:00:56]} 39. Kh2 {[%clk 0:00:09]}  d2 {[%clk 0:00:53]} 40. Rd1 {[%clk 0:00:09]}  Rd8 {[%clk 0:00:52]} 41. Bc2 {[%clk 0:00:09]}  Ne3 {[%clk 0:00:50]} 42. Rxd2 {[%clk 0:00:09]}  Rxd2 {[%clk 0:00:50]} 43. Qxd2 {[%clk 0:00:09]}  Nf1+ {[%clk 0:00:50]} 0-1


[Site "https://www.chess.com"]

[Event "Titled Tuesday Blitz March 14 Late 2023"]
[White "Sjugirov, Sanan"]
[Black "Tymrakiewicz, Rafal"]
[WhiteFideId "4189302"]
[BlackFideId "1108832"]
[WhiteElo "2569"]
[BlackElo "2151"]
[Result "0-1"]
[Round "01"]
[TimeControl "180+1"]
[Date "2023.03.14"]
[WhiteClock "0:00:02"]
[BlackClock "0:00:04"]

1. d4 {[%clk 0:03:00]}  Nf6 {[%clk 0:02:57]} 2. c4 {[%clk 0:02:59]}  d6 {[%clk 0:02:58]} 3. Nf3 {[%clk 0:02:55]}  Nc6 {[%clk 0:02:57]} 4. d5 {[%clk 0:02:50]}  Ne5 {[%clk 0:02:57]} 5. Nxe5 {[%clk 0:02:48]}  dxe5 {[%clk 0:02:56]} 6. Nc3 {[%clk 0:02:48]}  e6 {[%clk 0:02:57]} 7. e4 {[%clk 0:02:34]}  Bc5 {[%clk 0:02:56]} 8. Be2 {[%clk 0:02:28]}  c6 {[%clk 0:02:33]} 9. O-O {[%clk 0:02:24]}  O-O {[%clk 0:02:26]} 10. Bf3 {[%clk 0:01:52]}  h6 {[%clk 0:01:54]} 11. Re1 {[%clk 0:01:45]}  Bd4 {[%clk 0:01:46]} 12. Ne2 {[%clk 0:01:29]}  Bb6 {[%clk 0:01:43]} 13. Nc3 {[%clk 0:01:23]}  Bd4 {[%clk 0:01:43]} 14. Be3 {[%clk 0:01:13]}  Bxc3 {[%clk 0:01:40]} 15. bxc3 {[%clk 0:01:13]}  exd5 {[%clk 0:01:40]} 16. exd5 {[%clk 0:00:52]}  cxd5 {[%clk 0:01:33]} 17. Bxd5 {[%clk 0:00:50]}  Nxd5 {[%clk 0:01:26]} 18. cxd5 {[%clk 0:00:51]}  b6 {[%clk 0:01:23]} 19. c4 {[%clk 0:00:50]}  Bd7 {[%clk 0:01:13]} 20. c5 {[%clk 0:00:47]}  bxc5 {[%clk 0:01:12]} 21. Bxc5 {[%clk 0:00:48]}  Re8 {[%clk 0:01:12]} 22. Rc1 {[%clk 0:00:47]}  Qa5 {[%clk 0:01:07]} 23. a3 {[%clk 0:00:46]}  Rac8 {[%clk 0:01:04]} 24. Bb4 {[%clk 0:00:37]}  Rxc1 {[%clk 0:00:51]} 25. Bxa5 {[%clk 0:00:36]}  Rxd1 {[%clk 0:00:51]} 26. Rxd1 {[%clk 0:00:37]}  Rc8 {[%clk 0:00:45]} 27. h3 {[%clk 0:00:30]}  a6 {[%clk 0:00:34]} 28. d6 {[%clk 0:00:17]}  f6 {[%clk 0:00:30]} 29. Bc7 {[%clk 0:00:17]}  Kf7 {[%clk 0:00:29]} 30. Rb1 {[%clk 0:00:16]}  Ke6 {[%clk 0:00:29]} 31. Rb6 {[%clk 0:00:15]}  Ra8 {[%clk 0:00:26]} 32. f3 {[%clk 0:00:14]}  Kd5 {[%clk 0:00:26]} 33. Kf2 {[%clk 0:00:13]}  f5 {[%clk 0:00:25]} 34. Rb1 {[%clk 0:00:07]}  Ke6 {[%clk 0:00:22]} 35. h4 {[%clk 0:00:05]}  g6 {[%clk 0:00:20]} 36. Re1 {[%clk 0:00:04]}  a5 {[%clk 0:00:19]} 37. g4 {[%clk 0:00:03]}  a4 {[%clk 0:00:18]} 38. h5 {[%clk 0:00:01]}  gxh5 {[%clk 0:00:15]} 39. gxf5+ {[%clk 0:00:01]}  Kxf5 {[%clk 0:00:16]} 40. Rh1 {[%clk 0:00:02]}  Kg6 {[%clk 0:00:15]} 41. Rg1+ {[%clk 0:00:03]}  Kf7 {[%clk 0:00:14]} 42. Rh1 {[%clk 0:00:03]}  Kg6 {[%clk 0:00:14]} 43. Ke3 {[%clk 0:00:03]}  Ra6 {[%clk 0:00:07]} 44. Rg1+ {[%clk 0:00:04]}  Kf7 {[%clk 0:00:07]} 45. Rh1 {[%clk 0:00:04]}  Kg6 {[%clk 0:00:06]} 46. Rg1+ {[%clk 0:00:04]}  Kf7 {[%clk 0:00:06]} 47. Ke4 {[%clk 0:00:04]}  Rc6 {[%clk 0:00:05]} 48. Kxe5 {[%clk 0:00:04]}  Rc5+ {[%clk 0:00:05]} 49. Kd4 {[%clk 0:00:04]}  Rf5 {[%clk 0:00:05]} 50. Ke3 {[%clk 0:00:04]}  Rc5 {[%clk 0:00:05]} 51. Kd4 {[%clk 0:00:03]}  Rf5 {[%clk 0:00:04]} 52. Rf1 {[%clk 0:00:03]}  h4 {[%clk 0:00:05]} 53. f4 {[%clk 0:00:03]}  h3 {[%clk 0:00:05]} 54. Ke3 {[%clk 0:00:02]}  Rb5 {[%clk 0:00:05]} 55. Kf3 {[%clk 0:00:02]}  Bc6+ {[%clk 0:00:05]} 56. Kg3 {[%clk 0:00:02]}  Rb3+ {[%clk 0:00:05]} 57. Kh2 {[%clk 0:00:02]}  Bd7 {[%clk 0:00:04]} 58. Re1 {[%clk 0:00:02]}  Rb2+ {[%clk 0:00:04]} 0-1


[Site "https://www.chess.com"]

[Event "Titled Tuesday Blitz March 14 Late 2023"]
[White "Smith, Garrett L"]
[Black "Volkov, Maksim"]
[WhiteFideId "2024829"]
[BlackFideId "54123070"]
[WhiteElo "2280"]
[BlackElo "2312"]
[Result "1-0"]
[Round "01"]
[TimeControl "180+1"]
[Date "2023.03.14"]
[WhiteClock "0:00:35"]
[BlackClock "0:00:27"]

1. e4 {[%clk 0:03:00]}  c5 {[%clk 0:02:59]} 2. a3 {[%clk 0:03:00]}  d5 {[%clk 0:02:55]} 3. exd5 {[%clk 0:03:00]}  Qxd5 {[%clk 0:02:55]} 4. Nc3 {[%clk 0:03:00]}  Qe6+ {[%clk 0:02:54]} 5. Be2 {[%clk 0:02:59]}  Nc6 {[%clk 0:02:54]} 6. Nf3 {[%clk 0:02:56]}  Nf6 {[%clk 0:02:41]} 7. d3 {[%clk 0:02:49]}  g6 {[%clk 0:02:40]} 8. Be3 {[%clk 0:02:47]}  b6 {[%clk 0:02:39]} 9. Qd2 {[%clk 0:02:33]}  Bg7 {[%clk 0:02:27]} 10. h3 {[%clk 0:02:26]}  O-O {[%clk 0:02:24]} 11. O-O-O {[%clk 0:02:21]}  Nd5 {[%clk 0:02:23]} 12. Nxd5 {[%clk 0:02:16]}  Qxd5 {[%clk 0:02:24]} 13. Kb1 {[%clk 0:01:51]}  Be6 {[%clk 0:02:21]} 14. c4 {[%clk 0:01:50]}  Qd6 {[%clk 0:02:19]} 15. Ng5 {[%clk 0:01:43]}  Nd4 {[%clk 0:01:38]} 16. h4 {[%clk 0:01:41]}  Rfd8 {[%clk 0:01:18]} 17. h5 {[%clk 0:01:39]}  Bf5 {[%clk 0:01:14]} 18. hxg6 {[%clk 0:01:36]}  Bxg6 {[%clk 0:01:14]} 19. Ne4 {[%clk 0:01:25]}  Qe6 {[%clk 0:01:04]} 20. f3 {[%clk 0:01:03]}  Rac8 {[%clk 0:00:41]} 21. Bh6 {[%clk 0:00:56]}  Bh8 {[%clk 0:00:40]} 22. Bf4 {[%clk 0:00:51]}  b5 {[%clk 0:00:31]} 23. cxb5 {[%clk 0:00:47]}  c4 {[%clk 0:00:26]} 24. dxc4 {[%clk 0:00:40]}  Nxf3 {[%clk 0:00:26]} 25. Qxd8+ {[%clk 0:00:35]}  Rxd8 {[%clk 0:00:26]} 26. Rxd8+ {[%clk 0:00:35]}  Kg7 {[%clk 0:00:27]} 27. Bh6# {[%clk 0:00:35]} 1-0


[Site "https://www.chess.com"]

[Event "Titled Tuesday Blitz March 14 Late 2023"]
[White "Sochacki, Christophe"]
[Black "Kalajzic, Ivan"]
[WhiteFideId "662569"]
[BlackFideId "14506378"]
[WhiteElo "2474"]
[BlackElo "2203"]
[Result "1-0"]
[Round "01"]
[TimeControl "180+1"]
[Date "2023.03.14"]
[WhiteClock "0:00:18"]
[BlackClock "0:00:01"]

1. b3 {[%clk 0:02:38]}  e5 {[%clk 0:02:56]} 2. Bb2 {[%clk 0:02:37]}  Nc6 {[%clk 0:02:56]} 3. e3 {[%clk 0:02:26]}  g6 {[%clk 0:02:55]} 4. Bb5 {[%clk 0:02:24]}  Bg7 {[%clk 0:02:43]} 5. Nf3 {[%clk 0:02:22]}  Nge7 {[%clk 0:02:37]} 6. d4 {[%clk 0:02:19]}  e4 {[%clk 0:02:29]} 7. Nfd2 {[%clk 0:02:16]}  f5 {[%clk 0:02:22]} 8. c4 {[%clk 0:02:08]}  Nb4 {[%clk 0:02:17]} 9. c5 {[%clk 0:02:06]}  c6 {[%clk 0:02:11]} 10. Bc4 {[%clk 0:02:05]}  b5 {[%clk 0:02:05]} 11. Be2 {[%clk 0:01:51]}  Nbd5 {[%clk 0:02:03]} 12. a4 {[%clk 0:01:46]}  b4 {[%clk 0:01:47]} 13. Nc4 {[%clk 0:01:45]}  O-O {[%clk 0:01:46]} 14. O-O {[%clk 0:01:43]}  a5 {[%clk 0:01:46]} 15. f3 {[%clk 0:01:37]}  exf3 {[%clk 0:01:42]} 16. Bxf3 {[%clk 0:01:36]}  Ba6 {[%clk 0:01:42]} 17. Nbd2 {[%clk 0:01:34]}  Nf6 {[%clk 0:01:27]} 18. Re1 {[%clk 0:01:24]}  Ned5 {[%clk 0:01:26]} 19. Rc1 {[%clk 0:01:22]}  Re8 {[%clk 0:01:26]} 20. Ne5 {[%clk 0:01:18]}  Qc7 {[%clk 0:01:12]} 21. Ndc4 {[%clk 0:01:18]}  Re6 {[%clk 0:01:10]} 22. Nd6 {[%clk 0:01:16]}  Ne4 {[%clk 0:01:03]} 23. Nxe4 {[%clk 0:01:09]}  fxe4 {[%clk 0:01:03]} 24. Bxe4 {[%clk 0:01:10]}  Bxe5 {[%clk 0:00:52]} 25. dxe5 {[%clk 0:01:11]}  Rae8 {[%clk 0:00:47]} 26. Bxd5 {[%clk 0:01:03]}  cxd5 {[%clk 0:00:47]} 27. Qxd5 {[%clk 0:01:02]}  Bb7 {[%clk 0:00:46]} 28. Qd2 {[%clk 0:01:02]}  Qc6 {[%clk 0:00:43]} 29. Rf1 {[%clk 0:01:01]}  Rxe5 {[%clk 0:00:34]} 30. Bxe5 {[%clk 0:01:00]}  Rxe5 {[%clk 0:00:34]} 31. Rf2 {[%clk 0:00:59]}  Rxc5 {[%clk 0:00:32]} 32. Rcf1 {[%clk 0:00:47]}  Re5 {[%clk 0:00:18]} 33. Rf8+ {[%clk 0:00:36]}  Kg7 {[%clk 0:00:18]} 34. e4 {[%clk 0:00:36]}  Re7 {[%clk 0:00:07]} 35. Qd4+ {[%clk 0:00:30]}  Kh6 {[%clk 0:00:06]} 36. R8f3 {[%clk 0:00:24]}  Qxe4 {[%clk 0:00:02]} 37. Rh3+ {[%clk 0:00:21]}  Kg5 {[%clk 0:00:02]} 38. Qf2 {[%clk 0:00:19]}  Qe3 {[%clk 0:00:01]} 39. Rxe3 {[%clk 0:00:18]} 1-0


[Site "https://www.chess.com"]

[Event "Titled Tuesday Blitz March 14 Late 2023"]
[White "Steinberg, Nitzan"]
[Black "Jovic, Stanoje"]
[WhiteFideId "2801795"]
[BlackFideId "905020"]
[WhiteElo "2486"]
[BlackElo "2236"]
[Result "1-0"]
[Round "01"]
[TimeControl "180+1"]
[Date "2023.03.14"]
[WhiteClock "0:01:44"]
[BlackClock "0:00:10"]

1. Nf3 {[%clk 0:03:00]}  Nf6 {[%clk 0:02:59]} 2. g3 {[%clk 0:03:01]}  b5 {[%clk 0:02:58]} 3. Bg2 {[%clk 0:03:01]}  Bb7 {[%clk 0:02:58]} 4. O-O {[%clk 0:03:02]}  c5 {[%clk 0:02:59]} 5. d3 {[%clk 0:02:59]}  e6 {[%clk 0:02:59]} 6. e4 {[%clk 0:03:00]}  d5 {[%clk 0:02:58]} 7. e5 {[%clk 0:03:00]}  Nfd7 {[%clk 0:02:58]} 8. Re1 {[%clk 0:03:01]}  Nc6 {[%clk 0:02:56]} 9. h4 {[%clk 0:03:01]}  Be7 {[%clk 0:02:50]} 10. Bf4 {[%clk 0:03:01]}  a5 {[%clk 0:02:48]} 11. Nbd2 {[%clk 0:03:01]}  a4 {[%clk 0:02:48]} 12. a3 {[%clk 0:03:02]}  b4 {[%clk 0:02:43]} 13. Nf1 {[%clk 0:03:02]}  Nd4 {[%clk 0:02:36]} 14. Nxd4 {[%clk 0:03:01]}  cxd4 {[%clk 0:02:36]} 15. Nh2 {[%clk 0:02:50]}  Qb6 {[%clk 0:02:34]} 16. Qg4 {[%clk 0:02:44]}  g6 {[%clk 0:02:25]} 17. Bh6 {[%clk 0:02:43]}  Ba6 {[%clk 0:02:06]} 18. Nf3 {[%clk 0:02:42]}  b3 {[%clk 0:01:58]} 19. cxb3 {[%clk 0:02:42]}  axb3 {[%clk 0:01:58]} 20. Rad1 {[%clk 0:02:39]}  Nc5 {[%clk 0:01:56]} 21. Bf1 {[%clk 0:02:37]}  Na4 {[%clk 0:01:50]} 22. Rd2 {[%clk 0:02:37]}  Rc8 {[%clk 0:01:48]} 23. Nxd4 {[%clk 0:02:34]}  Kd7 {[%clk 0:01:30]} 24. Nxe6 {[%clk 0:02:32]}  fxe6 {[%clk 0:01:27]} 25. Qxa4+ {[%clk 0:02:32]}  Qb5 {[%clk 0:01:23]} 26. Qg4 {[%clk 0:02:31]}  Rc2 {[%clk 0:01:16]} 27. Bh3 {[%clk 0:02:22]}  Qb6 {[%clk 0:01:07]} 28. Rxc2 {[%clk 0:02:12]}  bxc2 {[%clk 0:01:06]} 29. Qa4+ {[%clk 0:02:13]}  Qb5 {[%clk 0:00:41]} 30. Qxc2 {[%clk 0:02:12]}  Qxd3 {[%clk 0:00:36]} 31. Bxe6+ {[%clk 0:01:52]}  Kxe6 {[%clk 0:00:35]} 32. Qc6+ {[%clk 0:01:52]}  Kf7 {[%clk 0:00:27]} 33. e6+ {[%clk 0:01:53]}  Kf6 {[%clk 0:00:24]} 34. Qc7 {[%clk 0:01:45]}  Rc8 {[%clk 0:00:10]} 35. Qe5# {[%clk 0:01:44]} 1-0


[Site "https://www.chess.com"]